Cogmind - Beta 12 @@@ ROGUE MODE // 2023.12.16 @ 22:49:31 Player: puppuppit Result: Destroyed by as-54225 with Assembled Rifle Performance ------------- Evolutions (2) 1000 Regions Visited (6) 1200 Robots Destroyed (24) 120 Value Destroyed (867) 867 Prototype IDs (28) 560 Alien Tech Used (0) 0 Bonus (500) 500 TOTAL SCORE: 4247 Bonus ------- Entered Garrisons 200 Aligned with FarCom 300 Cogmind --------- Core Integrity 0/550 Matter 255/300 Energy 100/100 System Corruption 0% Temperature Cool (0) Movement Core (50) Location -8/Garrison Parts ------- > --- POWER (1) -------- (None) > --- PROPULSION (4) --- (None) > --- UTILITY (4) ------ Improved Targeting Computer Advanced ECM Suite Hacking Suite System Shield > --- WEAPON (2) ------- (None) > --- INVENTORY (5) ---- Coolant Injector Cloak of Protection Relay Coupler [Demolisher] (24) High-powered Tractor Beam Improved EM Pulse Cannon Peak State ------------ > --- POWER ------------ Light Deuterium Engine > --- PROPULSION ------- Flight Unit Flight Unit Flight Unit Flight Unit > --- UTILITY ---------- Advanced ECM Suite Hacking Suite High-powered Tractor Beam > --- WEAPON ----------- Improved EM Pulse Cannon Improved EM Pulse Cannon > --- INVENTORY -------- Light Ion Engine Coolant Injector Structural Scanner Cloak of Protection [Rating: 25] Favorites ----------- Power Light Ion Engine Engine Light Ion Engine Power Core Light Nuclear Core Propulsion Flight Unit Wheel Wheel Flight Unit Flight Unit Utility Tractor Beam Device Tractor Beam Storage Small Storage Unit Processor Visual Processing Unit Hackware Hacking Suite Weapon Light Cannon Energy Cannon Improved EM Pulse Cannon Ballistic Gun Light Assault Rifle Ballistic Cannon Light Cannon Special Weapon Enhanced Flamer Build | -11 -10 -10 -10 -9 -8 -8 ------- Run | Jun Mat Min Exi Min Mat Gar Slots Evolved 4 | . . . . . 4 . Power . | . . . . . . . Propulsion 2 | . . . . . 2 . Utility 2 | . . . . . 2 . Weapon . | . . . . . . . Parts Attached 49 | 6 10 5 . 2 22 4 Power 8 | 1 2 2 . . 3 . Engine 5 | 1 2 1 . . 1 . Core 3 | . . 1 . . 2 . Reactor . | . . . . . . . Propulsion 9 | 2 3 1 . . 3 . Treads . | . . . . . . . Leg . | . . . . . . . Wheel 2 | 2 . . . . . . Hover . | . . . . . . . Flight 7 | . 3 1 . . 3 . Utility 15 | 1 2 1 . 2 9 . Device 10 | . 1 1 . 1 7 . Storage 1 | 1 . . . . . . Processor 2 | . 1 . . . 1 . Hackware 2 | . . . . 1 1 . Protection . | . . . . . . . Artifact . | . . . . . . . Weapon 17 | 2 3 1 . . 7 4 Energy Gun . | . . . . . . . Energy Cannon 11 | . . . . . 7 4 Ballistic Gun 2 | 2 . . . . . . Ballistic Cannon 3 | . 3 . . . . . Launcher . | . . . . . . . Special Weapon 1 | . . 1 . . . . Impact Weapon . | . . . . . . . Slashing Weapon . | . . . . . . . Piercing Weapon . | . . . . . . . Special Melee Weapon . | . . . . . . . Unidentified Prototypes . | . . . . . . . Parts Lost 8 | . . 1 . . 6 1 Power 1 | . . . . . 1 . Propulsion 5 | . . 1 . . 3 1 Utility 1 | . . . . . 1 . Weapon 1 | . . . . . 1 . Highest Loss Streak 5 | . . 1 . . 5 1 To Critical Strikes . | . . . . . . . Average Slot Usage (%) 81 | . 93 73 85 85 79 45 Engine 9 | . 14 10 14 14 5 . Core 1 | . . 2 . . 2 . Wheel 8 | . 23 . . . . . Flight 17 | . 4 28 28 28 30 8 Device 17 | . 11 28 28 26 20 9 Storage 1 | . 4 . . . . . Processor 4 | . 8 . . . . 9 Hackware 4 | . . . . 1 11 18 Energy Cannon 1 | . . . . . 5 1 Ballistic Gun 2 | . 6 . . . . . Ballistic Cannon 6 | . 18 . . . . . Special Weapon 3 | . . 3 14 14 2 . Naked Turns . | . . . . . . . Heaviest Build 17 | 10 17 8 8 8 16 3 Greatest Support 20 | 20 20 8 8 8 16 4 Greatest Overweight (x) 2 | . . . . . 2 . Average Overweight (x) . | . . . . . . . Largest Inventory Capacity 8 | 8 8 5 5 5 5 5 Average Capacity 5 | 7 6 5 5 5 5 5 Most Carried 5 | 1 5 5 5 5 5 5 Average Carried 4 | . 3 4 4 4 4 4 Final Capacity 8 | 8 5 5 5 5 5 5 Final Carried 5 | 1 5 5 5 5 5 5 Class Distribution -------------------- 64% | Mutant 12% | Hacker-Mutant 7% | Infiltrator-Mutant 6% | Scavenger-Sprinter 4% | Hacker-Sprinter Dominant Class ---------------- Mutant | -10/Materials Mutant | -10/Mines Mutant | -10/Exiles Mutant | -9/Mines Infiltrator-Mutant | -8/Materials Hacker-Mutant | -8/Garrison Resources | -11 -10 -10 -10 -9 -8 -8 ----------- Run | Jun Mat Min Exi Min Mat Gar Matter Collected 875 | 260 340 60 . 20 195 . Remotely 593 | . 338 60 . . 195 . Salvage Created 667 | . 326 . . 25 316 . Parts 52 | . 29 . . . 23 . Haulers Intercepted . | . . . . . . . Recyclers Shooed . | . . . . . . . Parts Field Recycled . | . . . . . . . Retrieved Matter . | . . . . . . . Parts Self-Destructed . | . . . . . . . Prevented . | . . . . . . . Kills | -11 -10 -10 -10 -9 -8 -8 ------- Run | Jun Mat Min Exi Min Mat Gar Combat Hostiles Destroyed 16 | . 10 . . 1 5 . Guns 2 | . 2 . . . . . Cannons 14 | . 8 . . 1 5 . Classes Destroyed 6 | . 4 . . . 2 . Builder 1 | . . . . . 1 . Operator 2 | . 2 . . . . . Watcher 5 | . 3 . . . 2 . Swarmer 4 | . 3 . . . 1 . Grunt 10 | . 7 . . 1 2 . Sentry 2 | . . . . . 2 . Best Kill Streak 7 | . 7 . . 1 2 . Combat Bots Only 5 | . 5 . . 1 2 . Max Kills in Single Turn 1 | . 1 . . 1 1 . Gunslinging . | . . . . . . . Exploded . | . . . . . . . Melee . | . . . . . . . Uniques/NPCs Destroyed . | . . . . . . . Combat | -11 -10 -10 -10 -9 -8 -8 -------- Run | Jun Mat Min Exi Min Mat Gar Damage Taken 1306 | . 308 39 . 52 605 302 Core 657 | . 81 . . 20 288 268 Absorbed by Shields 54 | . . . . . . 54 Regen/Repaired (Parts) 38 | . 38 . . . . . Core Remaining (%) 79 | 100 . . . 59 . . Volleys Fired 72 | . 37 . . 5 24 6 Largest 2 | . 2 . . 1 2 1 Hottest 149 | . 70 . . 80 149 69 Shots Fired 107 | . 71 . . 5 25 6 Gun 16 | . 16 . . . . . Cannon 85 | . 55 . . . 24 6 Launcher . | . . . . . . . Special 6 | . . . . 5 1 . Kinetic 71 | . 71 . . . . . Thermal 6 | . . . . 5 1 . Explosive . | . . . . . . . Electromagnetic 30 | . . . . . 24 6 Robot Hit Streak 15 | . 7 . . 5 15 . Robot Miss Streak 3 | . 3 . . . 3 . Penetration Max . | . . . . . . . Secondary Targets . | . . . . . . . Shots Hit Robots 63 | . 39 . . 5 19 . Core Hits 31 | . 20 . . 3 8 . Critical Kills . | . . . . . . . Critical Parts Destroyed 1 | . 1 . . . . . Critical Strikes 4 | . 3 . . . 1 . Destroy 1 | . 1 . . . . . Blast 2 | . 2 . . . . . Corrupt 1 | . . . . . 1 . Melee Attacks . | . . . . . . . Impact . | . . . . . . . Slashing . | . . . . . . . Piercing . | . . . . . . . Sneak Attacks . | . . . . . . . Combat Hostiles . | . . . . . . . Follow-up Attacks . | . . . . . . . Damage Inflicted 1284 | . 577 . . 55 652 . Guns 74 | . 74 . . . . . Cannons 1077 | . 503 . . . 574 . Explosions 78 | . . . . . 78 . Melee . | . . . . . . . Ramming . | . . . . . . . Kinetic 577 | . 577 . . . . . Thermal 133 | . . . . 55 78 . Explosive . | . . . . . . . Electromagnetic 574 | . . . . . 574 . Impact . | . . . . . . . Slashing . | . . . . . . . Piercing . | . . . . . . . Highest Corruption 3 | . 3 3 3 3 . . Average Corruption 2 | . 2 3 3 3 . . Corruption Purged . | . . . . . . . Corruption Blocked . | . . . . . . . Effects 7 | . 2 4 . 1 . . Message Errors 3 | . . 2 . 1 . . Matter Fused 2 | . 1 1 . . . . Misfires 1 | . 1 . . . . . Alerts 1 | . . 1 . . . . Overload Shots . | . . . . . . . Overflow Damage 49 | . . . . . 49 . Projectiles 15 | . . . . . 15 . Explosions 34 | . . . . . 34 . Melee . | . . . . . . . Knockbacks 6 | . 6 . . . . . Impact . | . . . . . . . Kinetic 6 | . 6 . . . . . Secondary . | . . . . . . . Self-Inflicted Damage 36 | . . . . . 36 . Shots 1 | . . . . . 1 . Rammed . | . . . . . . . Targets Rammed . | . . . . . . . Kicked . | . . . . . . . Crushed . | . . . . . . . Highest Temperature 199 | . 147 13 . 199 87 8 Average Temperature 47 | . 51 13 . 106 30 6 Received Heat Transfer 521 | . 159 39 . 45 243 35 Siege Activations . | . . . . . . . Robots Corrupted . | . . . . . . . Combat Hostiles . | . . . . . . . Parts Fried 1 | . . . . . 1 . Impact Corruptions . | . . . . . . . Robots Melted . | . . . . . . . Combat Hostiles . | . . . . . . . Parts Melted 2 | . . . . 1 1 . Heat Transferred 500 | . . . . 400 100 . Parts Sabotaged . | . . . . . . . Parts Stolen . | . . . . . . . Parts Stripped . | . . . . . . . Power Chain Reactions 1 | . . . . . 1 . Missiles Intercepted . | . . . . . . . Alert | -11 -10 -10 -10 -9 -8 -8 ------- Run | Jun Mat Min Exi Min Mat Gar Peak Influence 310 | . 310 135 . 20 193 306 Initial 120 | . . 120 . . 7 101 Average 116 | . 151 125 . 11 67 173 Maximum Alert Level 1 | . 1 . . . . 1 Low Security (%) 78 | 100 54 100 . 100 100 72 Level 1 21 | . 45 . . . . 27 Level 2 . | . . . . . . . Level 3 . | . . . . . . . Level 4 . | . . . . . . . Level 5 . | . . . . . . . High Security . | . . . . . . . Max Security . | . . . . . . . Squads Dispatched 7 | . 2 . . 1 4 . Investigation 3 | . . . . 1 2 . Extermination . | . . . . . . . Reinforcement 4 | . 2 . . . 2 . Assault . | . . . . . . . Garrison . | . . . . . . . Intercept . | . . . . . . . Searches Triggered . | . . . . . . . Construction Impeded . | . . . . . . . Haulers Reinforced . | . . . . . . . Active Scanning Responses . | . . . . . . . Cargo Convoy Interrupts . | . . . . . . . Stealth | -11 -10 -10 -10 -9 -8 -8 --------- Run | Jun Mat Min Exi Min Mat Gar Distress Signals 1 | . 1 . . . . . Communications Jammed . | . . . . . . . Distress Signals . | . . . . . . . Times Spotted 82 | . 21 2 . 2 32 25 Peak Tracking Total 15 | . 7 2 . 2 11 15 Tactical Retreats 11 | . 2 1 . . 5 3 Traps | -11 -10 -10 -10 -9 -8 -8 ------- Run | Jun Mat Min Exi Min Mat Gar Traps Triggered 6 | . 2 . . . . 4 Indirectly . | . . . . . . . Trap Hack Attempts . | . . . . . . . Triggered . | . . . . . . . Disarmed . | . . . . . . . Reprogrammed 2 | . . . . . 2 . Reused . | . . . . . . . Traps Extracted . | . . . . . . . Installed . | . . . . . . . Triggered . | . . . . . . . Machines | -11 -10 -10 -10 -9 -8 -8 ---------- Run | Jun Mat Min Exi Min Mat Gar Machines Disabled 2 | . 1 . . . . 1 Max in Single Turn 1 | . 1 . . . . 1 Garrison Relay 1 | . . . . . . 1 Machines Repaired . | . . . . . . . Machines Sabotaged . | . . . . . . . Overloaded Fab Kills . | . . . . . . . Hacking | -11 -10 -10 -10 -9 -8 -8 --------- Run | Jun Mat Min Exi Min Mat Gar Machines Accessed 18 | . 5 . 5 1 5 2 Terminals 8 | . 4 . . . 2 2 Fabricators . | . . . . . . . Repair Stations 2 | . 1 . . . 1 . Recycling Units . | . . . . . . . Scanalyzers 1 | . . . . . 1 . Garrison Access 1 | . . . . . 1 . Total Hacks 95 | . 15 . 50 1 24 5 Successful 77 | . 7 . 50 1 17 2 Failed 18 | . 8 . . . 7 3 Catastrophic 4 | . 1 . . . 1 2 Database Lockouts . | . . . . . . . Manual 4 | . . . 1 . 2 1 Terminals 26 | . 12 . . . 9 5 Fabricators . | . . . . . . . Repair Stations 5 | . 3 . . . 2 . Recycling Units . | . . . . . . . Scanalyzers 10 | . . . . . 10 . Garrison Access 3 | . . . . . 3 . Terminal Hacks 64 | . 5 . 50 1 6 2 Record 50 | . 1 . 49 . . . Prototype ID Bank 3 | . 2 . . . 1 . Open Door 1 | . . . . 1 . . Emergency Access Points 4 | . 1 . . . 2 1 Reprogram Traps 1 | . . . . . 1 . Recall Reinforcements 1 | . . . . . 1 . Zone Layout 2 | . 1 . . . 1 . Patrol Navigation 1 | . . . . . . 1 EX-Prototype ID Bank 1 | . . . 1 . . . Fabricator Hacks . | . . . . . . . Repair Station Hacks 3 | . 2 . . . 1 . Scan Component 2 | . 1 . . . 1 . Repair 1 | . 1 . . . . . Recycling Unit Hacks . | . . . . . . . Scanalyzer 9 | . . . . . 9 . Insert Component 4 | . . . . . 4 . Analyze 5 | . . . . . 5 . Garrison Access Hacks 1 | . . . . . 1 . Unlock Access 1 | . . . . . 1 . Unauthorized Hacks . | . . . . . . . Terminals . | . . . . . . . Fabricators . | . . . . . . . Repair Stations . | . . . . . . . Recycling Units . | . . . . . . . Scanalyzers . | . . . . . . . Garrison Access . | . . . . . . . Data Cores Recovered . | . . . . . . . Used . | . . . . . . . Hacking Detections 11 | . 4 . . . 5 2 Full Trace Events . | . . . . . . . Feedback Events . | . . . . . . . Feedback Blocked . | . . . . . . . Robot Schematics Acquired . | . . . . . . . Robots Built . | . . . . . . . Authchips . | . . . . . . . Time . | . . . . . . . Total Robot Build Rating . | . . . . . . . Part Schematics Acquired 4 | . . . . . 4 . Parts Built . | . . . . . . . Authchips . | . . . . . . . Time . | . . . . . . . Total Part Build Rating . | . . . . . . . Parts Repaired 1 | . 1 . . . . . Time 26 | . 26 . . . . . Parts Recycled . | . . . . . . . Recycled Matter . | . . . . . . . Retrieved Matter . | . . . . . . . Retrieved Components . | . . . . . . . Parts Scanalyzed 4 | . . . . . 4 . Part Schematics Acquired 4 | . . . . . 4 . Parts Damaged . | . . . . . . . Bothacking | -11 -10 -10 -10 -9 -8 -8 ------------ Run | Jun Mat Min Exi Min Mat Gar Used RIF Installer . | . . . . . . . Robots Hacked . | . . . . . . . Non-combat . | . . . . . . . Combat . | . . . . . . . Robot Hacks Applied . | . . . . . . . Relay Couplers Released 3 | . . . . . . 3 Machine Destruction 3 | . . . . . . 3 Fabnet Peak Effective % . | . . . . . . . Robots Rewired . | . . . . . . . Allies Hacked . | . . . . . . . Hacks Repelled . | . . . . . . . Allies | -11 -10 -10 -10 -9 -8 -8 -------- Run | Jun Mat Min Exi Min Mat Gar Total Allies . | . . . . . . . Largest Group . | . . . . . . . Highest-Rated Group . | . . . . . . . Highest-Rated Ally . | . . . . . . . Total Orders . | . . . . . . . Ally Attacks . | . . . . . . . Total Damage . | . . . . . . . Kills . | . . . . . . . Allies Corrupted . | . . . . . . . Allies Melted . | . . . . . . . Intel | -11 -10 -10 -10 -9 -8 -8 ------- Run | Jun Mat Min Exi Min Mat Gar Robot Analysis Total . | . . . . . . . Derelict Logs Recovered 2 | . . 1 . 1 . . Drone Launches . | . . . . . . . Drone Recoveries . | . . . . . . . Exploration | -11 -10 -10 -10 -9 -8 -8 ------------- Run | Jun Mat Min Exi Min Mat Gar Turns Passed 2008 | 37 733 258 167 112 488 213 Spaces Moved 3023 | 35 814 668 439 252 559 256 Core 8 | 1 . . . . 2 5 Treads . | . . . . . . . Legs . | . . . . . . . Wheels 607 | 34 573 . . . . . Hover . | . . . . . . . Flight 2408 | . 241 668 439 252 557 251 Fastest Speed 31 | 50 37 37 37 37 31 40 Average Speed 45 | 79 67 37 37 37 32 40 Slowest Speed 150 | 80 80 37 37 37 150 50 Overloaded Moves . | . . . . . . . Propulsion Burnouts . | . . . . . . . Robots Hopped 37 | . 4 12 . 5 12 4 Cave-ins Triggered . | . . . . . . . Exploration Rate (%) 58 | 3 93 99 88 40 50 39 Regions Visited 6 Branch Regions 3 Pre-discovered Areas 2 | . . 1 1 . . . Known Exits Taken 1 | . . . . . 1 . Unknown Exits Taken 5 | 1 1 1 1 1 . . Scrap Searched 2 | . . 1 . 1 . . Spaces Dug . | . . . . . . . Terrain Destroyed 3 | . . . . . 3 . Melee . | . . . . . . . Projectile . | . . . . . . . AOE 3 | . . . . . 3 . Terrain Rammed . | . . . . . . . Walls Destroyed . | . . . . . . . Machines Disabled . | . . . . . . . Actions | -11 -10 -10 -10 -9 -8 -8 --------- Run | Jun Mat Min Exi Min Mat Gar Total 3524 | 41 931 666 444 256 827 359 Wait 312 | . 54 . . . 215 43 Move 2947 | 34 805 643 438 241 536 250 Hop 34 | . 4 12 . 5 11 2 Pick Up 21 | 1 8 2 3 1 5 1 Fast Attach 18 | 6 7 2 . . 3 . Attach 19 | . 1 1 . . 13 4 Detach 14 | . 1 1 . . 8 4 Swap 12 | . 2 2 . 2 6 . Drop 27 | . 12 3 3 2 6 1 Fire 72 | . 37 . . 5 24 6 Melee . | . . . . . . . Ram . | . . . . . . . Kick . | . . . . . . . Crush . | . . . . . . . Escape Stasis 48 | . . . . . . 48 Rewire . | . . . . . . . Trap . | . . . . . . . Miscellaneous . | . . . . . . . Route ------- -11/Junkyard -10/Materials (discovered 5 exits: [*Mat x3] / [*Min x2]) -10/Mines (discovered 3 exits: [*Mat x2] / *Exi) -10/Exiles -9/Mines -8/Materials (discovered 2 exits: *Fac / Gar) -8/Garrison (discovered 1 exit: [*Mat]) History --------- Turn | Location | Event 14 | -11/Junkyard | Discovered new exit (range 16) 38 | -11/Junkyard | Entered Materials 250 | -10/Materials | Discovered new exit (range 15) 321 | -10/Materials | Build established: Mutant 383 | -10/Materials | Discovered new exit (range 12) 385 | -10/Materials | Discovered new exit (range 17) 447 | -10/Materials | Repaired Lgt. Cannon 700 | -10/Materials | Discovered new exit (range 5) 719 | -10/Materials | Discovered new exit (range 18) 771 | -10/Materials | Entered Mines 789 | -10/Mines | Met a Derelict bent on vengeance 810 | -10/Mines | Discovered new exit (range 9) 842 | -10/Mines | Discovered new exit (range 8) 927 | -10/Mines | Learned location of Storage (-9) 965 | -10/Mines | A weapon hastily lodged in a ceiling crevice suddenly fell to the ground 1001 | -10/Mines | Deemed a non-threat by the Exiles lab entrance 1001 | -10/Mines | Discovered new exit (range 5) 1029 | -10/Mines | Entered Exiles 1039 | -10/Exiles | Met 8R-AWN 1044 | -10/Exiles | Met EX-HEX 1059 | -10/Exiles | Met EX-BIN 1065 | -10/Exiles | Aligned with FarCom system 1065 | -10/Exiles | Given EX-Vault access code 1080 | -10/Exiles | Opened EX-Vault 1084 | -10/Exiles | Found Cloak of Protection 1109 | -10/Exiles | Warned to stay clear of 0b10 Research branches 1120 | -10/Exiles | Met EX-DEC 1124 | -10/Exiles | Learned location of Zion (-7) 1140 | -10/Exiles | Visited The Gauntlet 1193 | -10/Exiles | Discovered new exit (range 10) 1196 | -10/Exiles | Left Exiles lab with Cloak of Protection 1196 | -10/Exiles | Entered Mines 1207 | -9/Mines | Met a Derelict shopkeep closing up shop 1222 | -9/Mines | Learned 2 Materials zone layouts 1251 | -9/Mines | Discovered new exit (range 9) 1308 | -9/Mines | Entered Materials 1308 | -8/Materials | Evolved 4 slots: Propulsion x2, Utility x2 1309 | -8/Materials | Identified exit to Factory 1796 | -8/Materials | Core integrity fell below 50% 1796 | -8/Materials | Identified exit to Garrison 1796 | -8/Materials | Entered Garrison 1799 | -8/Garrison | Lost 5 parts (1p3n1u) 1901 | -8/Garrison | Garrison Relay disabled 1904 | -8/Garrison | Assembled breached garrison interior 1987 | -8/Garrison | Discovered new exit (range 8) 2001 | -8/Garrison | Core integrity fell below 20% 2009 | -8/Garrison | Destroyed by as-54225 with Assembled Rifle Last Messages --------------- 01997_ Field strength at 94. 01997_ Field strength at 88. 01998_ Field strength at 82. 01999_ Field strength at 68. 02000_ Field strength at 53. 02001_ Field strength at 47. 02002_ Field strength at 41. 02003_ Field strength at 35. 02004_ Field strength at 17. 02005_ Field strength at 3. 02005_ Stasis field depleted. 02006_ Triggered Stasis Trap. 02006_ A bubble of rippling energy engulfs the area. 02006_ Field strength at 94. 02007_ Field strength at 88. 02008_ Field strength at 78. 02009_ as-35747 triggered Stasis Trap. 02009_ A bubble of rippling energy engulfs the area. 02009_ Field strength at 93. 02009_ Field strength at 66. Map ----- +----------------------------------------------------+ | ?????????????????????????????????????????????????? | | ?????????????????????????????????????????????????? | | ?????????????????????????????????????????????????? | | ?????????????????????????????????????????????????? | | ?????????????????????????????????????????????????? | | ?????????????????????????????????????????????????? | | ?????????????????????????????????????????????????? | | ?????????????????????????????????????????????????? | | ?????????????????????????????????????????????????? | | ???????????????????????????????????#####?????????? | | ???????????????????????????????????# #?????????? | | ???????????????????????????######### < #?????????? | | ???????????????????????????# #?????????? | | #??????????????????????????# #?????????? | | ???????????????????????????# ##########?????????? | | ???????????????????????????# #??????????????????? | | ???????????????????????????# #??????????????????? | | #??????????????????????????# #??????????????????? | | ???????????????????????????# #??????????????????? | | ???????????????????????????# #??????????????????? | | ???????????????????????????# #??????????????????? | | ???????????????????????????# +??+???????????????? | | ???????????????????????????# #??????????????????? | | ???????????????????????????# #??????????????????? | | ????????????????############ #??????????????????? | | ?????????#??????# @a #??????????????????? | | ???#????????????# aa a aa#??????????s???????? | | ????????????????# ###+##### #???????+??s???????? | | ????????????????# ????????# #??????????s???????? | | ????????????????# ????????# ########???????????? | | ????????????????# +???????+ ????? | | ??????+???##+#??# ????????# ########???????????? | | ??????????# ?# ????????# #??????????????????? | | ?????## ##%= ## ##??????# #??????????????????? | | ??+??# %%*% ####+### #??????????????????? | | ????? ! % #??????????????????? | | ????? % #??????????????????? | | ??????%???# ## ###########??????????????????? | | ?????#= ## % ## ###??????????????????????????? | | ???? % ^ ! %% #??????????????????????????? | | ???+ %% =%[ #??????????????????????????? | | ???? =%* * #??????????????????????????? | | ???? [! #??????????????????????????? | | ?????#^ ##*% ## ###??????????????????????????? | | ?????# ##% ## #????????????????????????????? | | ?????# #####????????????????????????? | | ?????# " #????????????????????????? | | ?????# ### #????????????????????????? | | ?????## ## " ## #?# ###############??????????? | | ??????????# "%"?# #?# #?####?????? | +----------------------------------------------------+ Best States ------------- Heat Dissipation 31 Energy Generation 14 Energy Capacity 250 Matter Stores 300 Matter Capacity 300 Sight Range 18 Terrain Scan Density 10 ECM Strength 2 Evasion (%) 63 Targeting Accuracy 6 Offensive Hacking 10 Defensive Hacking 10 Item Schematics ----------------- System Shield | -8/Materials | Scanalyzed Lgt. Nuclear Core | -8/Materials | Scanalyzed Imp. EM Pulse Cannon | -8/Materials | Scanalyzed Reaction Control System | -8/Materials | Scanalyzed Robot Schematics ------------------ None Fabricated ------------ Nothing Alien Tech Used ----------------- None Achievements -------------- None Challenges ------------ None Game ------ Seed ImprinterLargeRail Manual? 0 Play Time 00:51:39 Cumulative 27.5 hours Start 2023.12.16 @ 21:57:18 End 2023.12.16 @ 22:49:31 Sessions 1 Manual Loads 0 Difficulty Rogue Special Mode None Game No. 16 Rogue 16 Adventurer 0 Explorer 0 Win Type - Total 0 Types 0/0/0/0/0/0/0/0/0 Lore% 22 Gallery% 30 Achievement% 30 Wizard Run 0 Options --------- ASCII 0 Keyboard 1 Movement Arrows Keybinds 0 Fullscreen 1 Font 12/Proggy Map View 83x54 Tactical HUD 1 Map Filters NONE Filters NONE Steam 0 RUN: 5a97e699-c86b-457d-b7f8-2b029f84be6b